[Event "Live Chess"]
[Site "Chess.com"]
[Date "2023.09.16"]
[Round "-"]
[White "RyanDiniz2011"]
[Black "PedroRossi14"]
[Result "1-0"]
[WhiteElo "1554"]
[BlackElo "518"]
[TimeControl "900+5"]
[EndTime "7:10:26 PDT"]
[Termination "RyanDiniz2011 venceu por desistência"]

1. d4 {[%clk 0:15:02.8]} 1... c6 {[%clk 0:15:02.2]} 2. c4 {[%clk 0:15:04.6]}
2... d5 {[%clk 0:15:05.9]} 3. Nc3 {[%clk 0:15:07.8]} 3... Nf6 {[%clk 0:15:07.9]}
4. Bf4 {[%clk 0:15:09.9]} 4... Nbd7 {[%clk 0:15:10.5]} 5. e3 {[%clk 0:15:12.4]}
5... e6 {[%clk 0:15:10.2]} 6. Nf3 {[%clk 0:15:13.5]} 6... Be7 {[%clk 0:15:13.9]}
7. Be2 {[%clk 0:15:16.4]} 7... O-O {[%clk 0:15:17.3]} 8. O-O {[%clk 0:15:20.4]}
8... c5 {[%clk 0:15:18.8]} 9. cxd5 {[%clk 0:15:23.6]} 9... exd5 {[%clk
0:15:21.3]} 10. Ne5 {[%clk 0:15:20.9]} 10... cxd4 {[%clk 0:15:22.7]} 11. exd4
{[%clk 0:15:20.9]} 11... Nb6 {[%clk 0:15:20.5]} 12. Qd3 {[%clk 0:15:17.3]} 12...
Nc4 {[%clk 0:15:13.4]} 13. Nxc4 {[%clk 0:15:08.5]} 13... dxc4 {[%clk 0:15:16.2]}
14. Qxc4 {[%clk 0:15:12.6]} 14... Be6 {[%clk 0:15:19.2]} 15. Qd3 {[%clk
0:15:03.5]} 15... Rc8 {[%clk 0:15:06]} 16. Rfd1 {[%clk 0:14:50.2]} 16... a6
{[%clk 0:15:01.9]} 17. Qg3 {[%clk 0:14:52.7]} 17... b5 {[%clk 0:14:48.4]} 18.
Bh6 {[%clk 0:14:54.8]} 18... Nh5 {[%clk 0:14:43.5]} 19. Bxh5 {[%clk 0:14:51.7]}
19... g6 {[%clk 0:14:46.4]} 20. Bxf8 {[%clk 0:14:51.5]} 20... Qxf8 {[%clk
0:14:49]} 21. d5 {[%clk 0:14:53.8]} 21... Bf5 {[%clk 0:14:48.8]} 22. Bg4 {[%clk
0:14:54.9]} 22... Bxg4 {[%clk 0:14:50.5]} 23. Qxg4 {[%clk 0:14:58.7]} 23... Rc4
{[%clk 0:14:51.8]} 24. Qf3 {[%clk 0:14:51.4]} 24... Bd6 {[%clk 0:14:45.1]} 25.
Ne4 {[%clk 0:14:50.8]} 25... Be5 {[%clk 0:14:45.3]} 26. Nf6+ {[%clk 0:14:51.9]}
26... Bxf6 {[%clk 0:14:48]} 27. Qxf6 {[%clk 0:14:53.8]} 27... Qh6 {[%clk
0:14:34.2]} 28. Re1 {[%clk 0:14:50.9]} 28... Rf4 {[%clk 0:14:32.6]} 29. Re8+
{[%clk 0:14:53.4]} 1-0

[Event "Live Chess"]
[Site "Chess.com"]
[Date "2023.09.16"]
[Round "-"]
[White "Highlanderson"]
[Black "Mariafernanda2805"]
[Result "0-1"]
[WhiteElo "1516"]
[BlackElo "1003"]
[TimeControl "900+5"]
[EndTime "7:10:37 PDT"]
[Termination "Mariafernanda2805 venceu por desistência"]

1. e4 {[%clk 0:15:03.1]} 1... c5 {[%clk 0:15:00.1]} 2. Nf3 {[%clk 0:15:03.8]}
2... d6 {[%clk 0:15:03]} 3. d4 {[%clk 0:15:07.4]} 3... cxd4 {[%clk 0:15:04.7]}
4. Nxd4 {[%clk 0:15:04.9]} 4... Nf6 {[%clk 0:15:04.6]} 5. Nc3 {[%clk 0:15:07.7]}
5... a6 {[%clk 0:15:06.6]} 6. Bc4 {[%clk 0:14:58.6]} 6... g6 {[%clk 0:15:00.8]}
7. Be3 {[%clk 0:14:49.3]} 7... Bg7 {[%clk 0:15:01.5]} 8. f3 {[%clk 0:14:53.2]}
8... O-O {[%clk 0:15:03.8]} 9. Qd2 {[%clk 0:14:56.7]} 9... Nc6 {[%clk
0:15:04.1]} 10. O-O-O {[%clk 0:14:45.1]} 10... Bd7 {[%clk 0:14:58.1]} 11. Bh6
{[%clk 0:14:37.3]} 11... Nxd4 {[%clk 0:14:52.7]} 12. Bxg7 {[%clk 0:14:20.1]}
12... Kxg7 {[%clk 0:14:42.1]} 13. Qxd4 {[%clk 0:14:18.1]} 13... e5 {[%clk
0:14:42.1]} 14. Qxd6 {[%clk 0:14:09.4]} 14... Be6 {[%clk 0:14:18]} 15. Bxe6
{[%clk 0:13:53.1]} 15... fxe6 {[%clk 0:14:16.2]} 16. Qxe6 {[%clk 0:13:36.2]}
16... Qe8 {[%clk 0:14:15.2]} 17. Qb6 {[%clk 0:13:07.3]} 17... Qe7 {[%clk
0:14:02.7]} 18. Nd5 {[%clk 0:12:59]} 18... Nxd5 {[%clk 0:14:02.7]} 19. Rxd5
{[%clk 0:12:53.9]} 19... Qf7 {[%clk 0:14:00.8]} 20. Rhd1 {[%clk 0:12:51.4]}
20... Kg8 {[%clk 0:13:40.3]} 21. Kb1 {[%clk 0:12:28.2]} 21... Rab8 {[%clk
0:13:19.1]} 22. Rd7 {[%clk 0:12:14.6]} 22... Qf4 {[%clk 0:12:58.3]} 23. Qe6+
{[%clk 0:11:18.5]} 23... Rf7 {[%clk 0:12:57.3]} 24. Rd8+ {[%clk 0:11:00]} 24...
Rxd8 {[%clk 0:12:56.2]} 25. Rxd8+ {[%clk 0:10:57]} 25... Kg7 {[%clk 0:12:57.2]}
26. g3 {[%clk 0:09:46.5]} 26... Qxf3 {[%clk 0:12:56.1]} 27. Qxe5+ {[%clk
0:09:49.9]} 27... Rf6 {[%clk 0:12:58.1]} 28. Rd7+ {[%clk 0:09:50.3]} 28... Kh6
{[%clk 0:13:00.6]} 29. a3 {[%clk 0:09:35.3]} 29... Qf1+ {[%clk 0:12:26.7]} 30.
Ka2 {[%clk 0:09:30.4]} 30... Qc4+ {[%clk 0:12:29.6]} 31. b3 {[%clk 0:09:34.1]}
31... Qxc2+ {[%clk 0:12:32.2]} 32. Ka1 {[%clk 0:09:24.2]} 32... Rf1+ {[%clk
0:12:34.5]} 0-1

[Event "Live Chess"]
[Site "Chess.com"]
[Date "2023.09.16"]
[Round "-"]
[White "Corveloni_Ma"]
[Black "DaviFuzatto"]
[Result "1-0"]
[WhiteElo "1395"]
[BlackElo "1373"]
[TimeControl "900+5"]
[EndTime "7:11:47 PDT"]
[Termination "Corveloni_Ma venceu por desistência"]

1. d4 {[%clk 0:15:03.5]} 1... Nf6 {[%clk 0:15:01.8]} 2. Nf3 {[%clk 0:15:06.4]}
2... g6 {[%clk 0:15:05]} 3. g3 {[%clk 0:15:09.3]} 3... Bg7 {[%clk 0:15:08.6]} 4.
Bg2 {[%clk 0:15:13.3]} 4... O-O {[%clk 0:15:11.5]} 5. O-O {[%clk 0:15:17.2]}
5... d6 {[%clk 0:15:15.4]} 6. c4 {[%clk 0:15:20.2]} 6... Nbd7 {[%clk 0:15:18.3]}
7. Nbd2 {[%clk 0:15:22.6]} 7... e5 {[%clk 0:15:22.4]} 8. Qc2 {[%clk 0:15:20.5]}
8... exd4 {[%clk 0:15:09.2]} 9. Nxd4 {[%clk 0:15:23.4]} 9... Nb6 {[%clk
0:15:12.3]} 10. b3 {[%clk 0:14:56.6]} 10... Nfd7 {[%clk 0:15:02.4]} 11. Bb2
{[%clk 0:14:57.3]} 11... Nc5 {[%clk 0:15:03.3]} 12. e4 {[%clk 0:14:39.1]} 12...
Re8 {[%clk 0:14:57.5]} 13. Rfe1 {[%clk 0:14:24]} 13... Ne6 {[%clk 0:13:33.3]}
14. Nxe6 {[%clk 0:14:16.4]} 14... Bxe6 {[%clk 0:13:38.2]} 15. Bxg7 {[%clk
0:14:19.8]} 15... Kxg7 {[%clk 0:13:39.5]} 16. Qc3+ {[%clk 0:14:21.5]} 16... Kg8
{[%clk 0:12:54.5]} 17. Rad1 {[%clk 0:14:07.5]} 17... Qd7 {[%clk 0:12:49.5]} 18.
e5 {[%clk 0:14:07.3]} 18... Rab8 {[%clk 0:10:52.7]} 19. Ne4 {[%clk 0:14:07.6]}
19... Kf8 {[%clk 0:09:18.9]} 20. Nf6 {[%clk 0:14:10.1]} 20... Qe7 {[%clk
0:09:22.9]} 21. Nxe8 {[%clk 0:13:52]} 21... Rxe8 {[%clk 0:09:27.8]} 22. exd6
{[%clk 0:13:47.9]} 1-0

[Event "Live Chess"]
[Site "Chess.com"]
[Date "2023.09.16"]
[Round "-"]
[White "lgomessc"]
[Black "guilhermemazza"]
[Result "1-0"]
[WhiteElo "1137"]
[BlackElo "462"]
[TimeControl "900+5"]
[EndTime "7:12:23 PDT"]
[Termination "lgomessc venceu por xeque-mate"]

1. e4 {[%clk 0:15:02.6]} 1... e5 {[%clk 0:15:02.7]} 2. Nf3 {[%clk 0:15:06.4]}
2... Nc6 {[%clk 0:15:04.4]} 3. Bc4 {[%clk 0:15:09.1]} 3... Nf6 {[%clk
0:14:55.4]} 4. Ng5 {[%clk 0:15:08.9]} 4... h6 {[%clk 0:14:58.1]} 5. Nxf7 {[%clk
0:15:10.4]} 5... Qe7 {[%clk 0:14:56]} 6. Nxh8 {[%clk 0:15:13.2]} 6... d5 {[%clk
0:14:55.5]} 7. Bxd5 {[%clk 0:15:10.6]} 7... Nxd5 {[%clk 0:14:58.5]} 8. exd5
{[%clk 0:15:13.9]} 8... Nd4 {[%clk 0:14:57.9]} 9. Qh5+ {[%clk 0:15:11.9]} 9...
Qf7 {[%clk 0:15:00.8]} 10. Qxf7+ {[%clk 0:15:13.2]} 10... Kd8 {[%clk 0:15:03.1]}
11. Qxf8+ {[%clk 0:15:16.7]} 11... Kd7 {[%clk 0:15:06.2]} 12. Nf7 {[%clk
0:15:06.4]} 12... Nxc2+ {[%clk 0:15:03.3]} 13. Kf1 {[%clk 0:14:59.5]} 13... Nxa1
{[%clk 0:15:07]} 14. Qd8# {[%clk 0:15:03.2]} 1-0

[Event "Live Chess"]
[Site "Chess.com"]
[Date "2023.09.16"]
[Round "-"]
[White "VitorEMS"]
[Black "Alplee"]
[Result "0-1"]
[WhiteElo "737"]
[BlackElo "1965"]
[TimeControl "900+5"]
[EndTime "7:13:08 PDT"]
[Termination "Alplee venceu por desistência"]

1. e4 {[%clk 0:14:58.4]} 1... c5 {[%clk 0:15:00.7]} 2. Nc3 {[%clk 0:14:52.8]}
2... d6 {[%clk 0:15:02.3]} 3. Nf3 {[%clk 0:14:53]} 3... Nc6 {[%clk 0:15:04.6]}
4. d4 {[%clk 0:14:43.7]} 4... cxd4 {[%clk 0:15:07.7]} 5. Nxd4 {[%clk 0:14:45.8]}
5... Nf6 {[%clk 0:15:12]} 6. Nxc6 {[%clk 0:14:48]} 6... bxc6 {[%clk 0:15:15.6]}
7. Bc4 {[%clk 0:14:47.9]} 7... e5 {[%clk 0:15:08.7]} 8. O-O {[%clk 0:14:40.4]}
8... Be7 {[%clk 0:15:10.6]} 9. Bg5 {[%clk 0:14:31.1]} 9... Be6 {[%clk
0:14:57.3]} 10. Bd3 {[%clk 0:14:16.4]} 10... h6 {[%clk 0:14:57.6]} 11. Bxf6
{[%clk 0:14:14.2]} 11... Bxf6 {[%clk 0:15:01.5]} 12. Qd2 {[%clk 0:14:02.6]}
12... Rb8 {[%clk 0:14:49.3]} 13. b3 {[%clk 0:14:00.4]} 13... Bg5 {[%clk
0:14:51.5]} 14. Qe2 {[%clk 0:13:57.4]} 14... Qa5 {[%clk 0:14:51.8]} 15. Qe1
{[%clk 0:13:56.2]} 15... O-O {[%clk 0:14:36.3]} 16. a3 {[%clk 0:13:39.8]} 16...
Bxb3 {[%clk 0:13:30.5]} 17. cxb3 {[%clk 0:13:40.9]} 17... Rxb3 {[%clk
0:13:34.1]} 18. Ne2 {[%clk 0:13:18.1]} 18... Qxe1 {[%clk 0:13:34.1]} 19. Rfxe1
{[%clk 0:13:20.1]} 19... Rxd3 {[%clk 0:13:38.4]} 20. f4 {[%clk 0:13:17.7]} 20...
Bxf4 {[%clk 0:13:27.8]} 21. Nxf4 {[%clk 0:13:19.1]} 21... exf4 {[%clk
0:13:31.5]} 22. e5 {[%clk 0:13:19.2]} 22... d5 {[%clk 0:13:16.3]} 23. e6 {[%clk
0:13:17.7]} 23... Re8 {[%clk 0:13:05.4]} 24. exf7+ {[%clk 0:13:18.1]} 24... Kxf7
{[%clk 0:13:10.3]} 25. Rxe8 {[%clk 0:13:18.9]} 25... Kxe8 {[%clk 0:13:14.1]} 26.
Re1+ {[%clk 0:13:21.4]} 26... Re3 {[%clk 0:13:16.3]} 27. Rxe3+ {[%clk
0:13:23.7]} 27... fxe3 {[%clk 0:13:20.5]} 28. Kf1 {[%clk 0:13:25.8]} 28... Ke7
{[%clk 0:13:24.4]} 29. Ke2 {[%clk 0:13:27.1]} 29... d4 {[%clk 0:13:28.1]} 30.
Kd3 {[%clk 0:13:30.4]} 30... Ke6 {[%clk 0:13:32]} 31. Kxd4 {[%clk 0:13:34.1]}
31... e2 {[%clk 0:13:35.7]} 0-1

[Event "Live Chess"]
[Site "Chess.com"]
[Date "2023.09.16"]
[Round "-"]
[White "rakohibri"]
[Black "Ruanfelipe2014"]
[Result "1-0"]
[WhiteElo "875"]
[BlackElo "966"]
[TimeControl "900+5"]
[EndTime "7:15:03 PDT"]
[Termination "rakohibri venceu por desistência"]

1. d4 {[%clk 0:14:59.7]} 1... d5 {[%clk 0:15:01.6]} 2. c4 {[%clk 0:14:45.3]}
2... Nf6 {[%clk 0:14:56.4]} 3. cxd5 {[%clk 0:14:45.6]} 3... Nxd5 {[%clk
0:14:58.8]} 4. e4 {[%clk 0:14:48.6]} 4... Nb6 {[%clk 0:14:54.7]} 5. Nc3 {[%clk
0:14:34.4]} 5... Nc6 {[%clk 0:14:51.5]} 6. Nf3 {[%clk 0:14:23.5]} 6... Bg4
{[%clk 0:14:50.8]} 7. d5 {[%clk 0:13:33.6]} 7... Ne5 {[%clk 0:14:46.4]} 8. Be2
{[%clk 0:13:17]} 8... Nxf3+ {[%clk 0:14:44.2]} 9. Bxf3 {[%clk 0:13:14]} 9...
Bxf3 {[%clk 0:14:47]} 10. Qxf3 {[%clk 0:13:12.9]} 10... e5 {[%clk 0:14:50]} 11.
Be3 {[%clk 0:12:30.3]} 11... Nc4 {[%clk 0:14:46.4]} 12. Bc1 {[%clk 0:12:04.5]}
12... Bc5 {[%clk 0:14:15.8]} 13. O-O {[%clk 0:11:41.1]} 13... Qd7 {[%clk
0:13:25.1]} 14. b3 {[%clk 0:11:25.5]} 14... Nb6 {[%clk 0:13:20.5]} 15. Be3
{[%clk 0:11:21.4]} 15... Bxe3 {[%clk 0:13:16.1]} 16. Qxe3 {[%clk 0:11:15.4]}
16... O-O {[%clk 0:13:12.7]} 17. Rac1 {[%clk 0:10:42]} 17... f5 {[%clk
0:12:58.9]} 18. Rfd1 {[%clk 0:10:00.3]} 18... fxe4 {[%clk 0:12:45.2]} 19. Nxe4
{[%clk 0:09:56.2]} 19... Rac8 {[%clk 0:12:20]} 20. d6 {[%clk 0:09:32.1]} 20...
cxd6 {[%clk 0:12:16.5]} 21. Rxc8 {[%clk 0:09:23.9]} 21... Rxc8 {[%clk
0:12:16.5]} 22. h3 {[%clk 0:09:01.4]} 22... Rc2 {[%clk 0:11:52]} 23. Rxd6 {[%clk
0:08:41.4]} 23... Qc7 {[%clk 0:11:38.1]} 24. Rd2 {[%clk 0:07:58.6]} 24... Rc1+
{[%clk 0:11:23.5]} 25. Kh2 {[%clk 0:07:46]} 25... Qc6 {[%clk 0:10:59.3]} 26. Ng5
{[%clk 0:07:28.1]} 26... Qc7 {[%clk 0:10:28.2]} 27. Qe4 {[%clk 0:07:13.9]} 27...
h6 {[%clk 0:10:06.8]} 28. Qh7+ {[%clk 0:07:11.6]} 28... Kf8 {[%clk 0:10:05.6]}
29. Ne6+ {[%clk 0:06:58.1]} 29... Ke7 {[%clk 0:10:05.6]} 30. Nxc7 {[%clk
0:06:59.4]} 30... Rxc7 {[%clk 0:10:06.6]} 1-0

[Event "Live Chess"]
[Site "Chess.com"]
[Date "2023.09.16"]
[Round "-"]
[White "Rafael-2021"]
[Black "SaladaChess"]
[Result "1/2-1/2"]
[WhiteElo "1092"]
[BlackElo "1112"]
[TimeControl "900+5"]
[EndTime "7:16:22 PDT"]
[Termination "Empate por repetição"]

1. e4 {[%clk 0:15:00.5]} 1... c6 {[%clk 0:15:03.7]} 2. d4 {[%clk 0:15:01.6]}
2... d5 {[%clk 0:15:07.6]} 3. e5 {[%clk 0:15:05.5]} 3... Bf5 {[%clk 0:15:11.6]}
4. Nf3 {[%clk 0:15:07.9]} 4... e6 {[%clk 0:15:15.8]} 5. Bd3 {[%clk 0:15:10.6]}
5... Bxd3 {[%clk 0:15:19.4]} 6. Qxd3 {[%clk 0:15:14.5]} 6... c5 {[%clk
0:15:23.7]} 7. c3 {[%clk 0:15:17.9]} 7... Nc6 {[%clk 0:15:27.5]} 8. Be3 {[%clk
0:15:21.3]} 8... cxd4 {[%clk 0:15:30.4]} 9. cxd4 {[%clk 0:15:24.6]} 9... Nge7
{[%clk 0:15:22.3]} 10. Nbd2 {[%clk 0:15:26.9]} 10... Nf5 {[%clk 0:15:23.7]} 11.
O-O {[%clk 0:15:26.3]} 11... Be7 {[%clk 0:15:18.1]} 12. Rfe1 {[%clk 0:15:21.4]}
12... O-O {[%clk 0:15:19.1]} 13. Nf1 {[%clk 0:15:23.7]} 13... f6 {[%clk
0:14:47.5]} 14. exf6 {[%clk 0:15:18.1]} 14... Bxf6 {[%clk 0:14:48.4]} 15. Ng3
{[%clk 0:15:16.2]} 15... Nxg3 {[%clk 0:14:41.1]} 16. hxg3 {[%clk 0:15:18.3]}
16... Nb4 {[%clk 0:14:20.3]} 17. Qb3 {[%clk 0:15:17.8]} 17... Qe7 {[%clk
0:13:57.3]} 18. a3 {[%clk 0:15:16]} 18... Nc6 {[%clk 0:13:58.9]} 19. Bf4 {[%clk
0:14:46.2]} 19... Nxd4 {[%clk 0:13:35.3]} 20. Nxd4 {[%clk 0:14:44.9]} 20... Bxd4
{[%clk 0:13:37.9]} 21. Qxd5 {[%clk 0:14:43.5]} 21... exd5 {[%clk 0:12:58.6]} 22.
Rxe7 {[%clk 0:14:44.2]} 22... Rf7 {[%clk 0:12:57.8]} 23. Rxf7 {[%clk 0:14:44.8]}
23... Kxf7 {[%clk 0:13:01.6]} 24. Rb1 {[%clk 0:14:44.5]} 24... Ke6 {[%clk
0:12:55.6]} 25. b4 {[%clk 0:14:47.2]} 25... Be5 {[%clk 0:12:58.8]} 26. Bxe5
{[%clk 0:14:48.4]} 26... Kxe5 {[%clk 0:13:02.9]} 27. Rd1 {[%clk 0:14:51]} 27...
d4 {[%clk 0:13:05.8]} 28. f3 {[%clk 0:14:51.1]} 28... Rd8 {[%clk 0:13:08.9]} 29.
Rd3 {[%clk 0:14:53.2]} 29... Kd5 {[%clk 0:13:11.7]} 30. Kf2 {[%clk 0:14:50.5]}
30... Kc4 {[%clk 0:13:15.7]} 31. Ke2 {[%clk 0:14:52.5]} 31... Re8+ {[%clk
0:13:15.3]} 32. Kd2 {[%clk 0:14:56.3]} 32... Re3 {[%clk 0:13:13.8]} 33. Rxe3
{[%clk 0:14:59]} 33... dxe3+ {[%clk 0:13:18]} 34. Kxe3 {[%clk 0:15:02.8]} 34...
Kb3 {[%clk 0:13:22.3]} 35. Kf4 {[%clk 0:15:06.2]} 35... Kxa3 {[%clk 0:13:26.6]}
36. Ke5 {[%clk 0:15:08.7]} 36... Kxb4 {[%clk 0:13:30.3]} 37. Ke6 {[%clk
0:15:12.5]} 37... a5 {[%clk 0:13:34.4]} 38. Kf7 {[%clk 0:15:16.1]} 38... a4
{[%clk 0:13:38.6]} 39. Kxg7 {[%clk 0:15:20.1]} 39... a3 {[%clk 0:13:43.2]} 40.
f4 {[%clk 0:15:23.9]} 40... a2 {[%clk 0:13:47.5]} 41. f5 {[%clk 0:15:27.7]}
41... a1=Q+ {[%clk 0:13:51.7]} 42. f6 {[%clk 0:15:31.6]} 42... Qc3 {[%clk
0:13:44.7]} 43. g4 {[%clk 0:15:29.8]} 43... b5 {[%clk 0:13:40.7]} 44. g5 {[%clk
0:15:31.7]} 44... Kc4 {[%clk 0:13:44.4]} 45. Kxh7 {[%clk 0:15:34.2]} 45... b4
{[%clk 0:13:48.1]} 46. f7 {[%clk 0:15:36.7]} 46... b3 {[%clk 0:13:30.7]} 47.
f8=Q {[%clk 0:15:39.2]} 47... b2 {[%clk 0:13:34.7]} 48. Qf7+ {[%clk 0:15:40.2]}
48... Kd3 {[%clk 0:13:36.2]} 49. Qf5+ {[%clk 0:15:42.2]} 49... Kd2 {[%clk
0:13:39.9]} 50. Qf2+ {[%clk 0:15:43.7]} 50... Kc1 {[%clk 0:13:42.7]} 51. Qf1+
{[%clk 0:15:45]} 51... Kc2 {[%clk 0:13:45.7]} 52. Qf2+ {[%clk 0:15:48.2]} 52...
Qd2 {[%clk 0:13:46.3]} 53. Qc5+ {[%clk 0:15:51]} 53... Qc3 {[%clk 0:13:50.2]}
54. Qf2+ {[%clk 0:15:54.2]} 54... Qd2 {[%clk 0:13:54]} 55. Qc5+ {[%clk
0:15:57.6]} 55... Qc3 {[%clk 0:13:53]} 56. Qf2+ {[%clk 0:16:00.7]} 1/2-1/2

[Event "Live Chess"]
[Site "Chess.com"]
[Date "2023.09.16"]
[Round "-"]
[White "Alplee"]
[Black "guilhermemazza"]
[Result "1-0"]
[WhiteElo "1965"]
[BlackElo "462"]
[TimeControl "900+5"]
[EndTime "7:16:23 PDT"]
[Termination "Alplee venceu por desistência"]

1. d4 {[%clk 0:15:03.5]} 1... d5 {[%clk 0:15:02.9]} 2. c4 {[%clk 0:15:07.5]}
2... c6 {[%clk 0:15:06]} 3. Nf3 {[%clk 0:15:11.3]} 3... Bf5 {[%clk 0:14:58.7]}
4. Nc3 {[%clk 0:15:13.2]} 4... dxc4 {[%clk 0:14:58.7]} 5. e3 {[%clk 0:15:07.3]}
5... e6 {[%clk 0:14:54.7]} 6. Bxc4 {[%clk 0:15:08.6]} 6... Bb4 {[%clk
0:14:54.5]} 7. O-O {[%clk 0:15:00.4]} 7... Bxc3 {[%clk 0:14:55.4]} 8. bxc3
{[%clk 0:15:02.7]} 8... Nf6 {[%clk 0:14:57]} 9. Bd3 {[%clk 0:15:02.9]} 9... O-O
{[%clk 0:14:58.6]} 10. Bxf5 {[%clk 0:15:05.2]} 10... exf5 {[%clk 0:15:01.4]} 11.
Qd3 {[%clk 0:15:08.8]} 11... f4 {[%clk 0:15:03.4]} 12. exf4 {[%clk 0:15:09.8]}
12... Ng4 {[%clk 0:15:02.2]} 13. h3 {[%clk 0:15:07.3]} 13... Nxf2 {[%clk
0:15:00.8]} 14. Rxf2 {[%clk 0:15:07]} 14... Qe7 {[%clk 0:15:01.9]} 15. Re2
{[%clk 0:15:07.8]} 15... Re8 {[%clk 0:15:04.3]} 16. Rxe7 {[%clk 0:15:10.5]}
16... Rxe7 {[%clk 0:15:08.1]} 17. Ng5 {[%clk 0:15:13.6]} 17... Re1+ {[%clk
0:15:10.5]} 18. Kf2 {[%clk 0:15:15.1]} 18... Rxc1 {[%clk 0:15:12.8]} 19. Rxc1
{[%clk 0:15:17.7]} 19... Nd7 {[%clk 0:15:11]} 20. Qxh7+ {[%clk 0:15:20.5]} 20...
Kf8 {[%clk 0:15:13.4]} 21. Qh8+ {[%clk 0:15:23.3]} 21... Ke7 {[%clk 0:15:16.8]}
22. Re1+ {[%clk 0:15:26.4]} 22... Kf6 {[%clk 0:15:19.4]} 23. Qxa8 {[%clk
0:15:30.2]} 1-0

[Event "Live Chess"]
[Site "Chess.com"]
[Date "2023.09.16"]
[Round "-"]
[White "Mariafernanda2805"]
[Black "VitorEMS"]
[Result "1-0"]
[WhiteElo "1006"]
[BlackElo "728"]
[TimeControl "900+5"]
[EndTime "7:16:46 PDT"]
[Termination "Mariafernanda2805 venceu por desistência"]

1. e4 {[%clk 0:14:56.2]} 1... e5 {[%clk 0:15:02.4]} 2. Nf3 {[%clk 0:14:58.2]}
2... Nf6 {[%clk 0:15:06.2]} 3. Nc3 {[%clk 0:14:59.8]} 3... Nc6 {[%clk
0:15:09.1]} 4. Bc4 {[%clk 0:15:00.7]} 4... d6 {[%clk 0:15:13]} 5. O-O {[%clk
0:15:00.8]} 5... g6 {[%clk 0:15:11.2]} 6. a3 {[%clk 0:15:00.8]} 6... Bh6 {[%clk
0:15:08.4]} 7. d3 {[%clk 0:14:57.7]} 7... Bf4 {[%clk 0:15:10.4]} 8. Bxf4 {[%clk
0:14:53.8]} 8... exf4 {[%clk 0:15:12.3]} 9. Qd2 {[%clk 0:14:55.2]} 9... g5
{[%clk 0:15:12.8]} 10. Nxg5 {[%clk 0:14:55.5]} 10... O-O {[%clk 0:15:12.1]} 11.
Qxf4 {[%clk 0:14:55.1]} 11... Be6 {[%clk 0:14:28.4]} 12. Bxe6 {[%clk 0:14:54]}
12... fxe6 {[%clk 0:14:28.6]} 13. Nxe6 {[%clk 0:14:57.2]} 1-0

[Event "Live Chess"]
[Site "Chess.com"]
[Date "2023.09.16"]
[Round "-"]
[White "asafefausto"]
[Black "CauaLopes12"]
[Result "0-1"]
[WhiteElo "648"]
[BlackElo "1324"]
[TimeControl "900+5"]
[EndTime "7:18:16 PDT"]
[Termination "CauaLopes12 venceu por xeque-mate"]

1. d4 {[%clk 0:14:57.6]} 1... Nf6 {[%clk 0:15:02.1]} 2. Nc3 {[%clk 0:14:57.2]}
2... g6 {[%clk 0:15:06.4]} 3. e4 {[%clk 0:14:55.7]} 3... d6 {[%clk 0:15:06.9]}
4. e5 {[%clk 0:14:54.2]} 4... dxe5 {[%clk 0:15:09]} 5. dxe5 {[%clk 0:14:56.9]}
5... Nfd7 {[%clk 0:15:11.1]} 6. Bc4 {[%clk 0:14:45.7]} 6... Nxe5 {[%clk
0:15:07.4]} 7. Qxd8+ {[%clk 0:14:43.2]} 7... Kxd8 {[%clk 0:15:11.8]} 8. Bxf7
{[%clk 0:14:32.8]} 8... Nxf7 {[%clk 0:15:13.3]} 9. Bf4 {[%clk 0:14:28.8]} 9...
Nc6 {[%clk 0:15:13.6]} 10. O-O-O+ {[%clk 0:14:28.4]} 10... Bd7 {[%clk
0:15:17.9]} 11. Ne4 {[%clk 0:14:15.9]} 11... Ke8 {[%clk 0:15:15.6]} 12. Nf6+
{[%clk 0:14:01.9]} 12... exf6 {[%clk 0:15:16]} 13. Re1+ {[%clk 0:14:03.1]} 13...
Be7 {[%clk 0:15:17.5]} 14. Bxc7 {[%clk 0:14:03.5]} 14... Nfe5 {[%clk 0:15:08.8]}
15. Nf3 {[%clk 0:13:55.5]} 15... Nxf3 {[%clk 0:15:08.1]} 16. gxf3 {[%clk
0:13:58.4]} 16... Kf7 {[%clk 0:15:12.5]} 17. Re3 {[%clk 0:13:46.1]} 17... f5
{[%clk 0:15:09.8]} 18. Rd1 {[%clk 0:13:38.9]} 18... Be6 {[%clk 0:14:59.1]} 19.
Be5 {[%clk 0:13:31.8]} 19... Nxe5 {[%clk 0:14:56.1]} 20. Rxe5 {[%clk 0:13:34.4]}
20... Rhd8 {[%clk 0:15:00.4]} 21. h4 {[%clk 0:13:11.9]} 21... Bxh4 {[%clk
0:14:57.4]} 22. Re2 {[%clk 0:12:51.7]} 22... Rxd1+ {[%clk 0:14:57.4]} 23. Kxd1
{[%clk 0:12:51.1]} 23... Rd8+ {[%clk 0:15:00.3]} 24. Rd2 {[%clk 0:12:50.2]}
24... Rxd2+ {[%clk 0:14:55]} 25. Kxd2 {[%clk 0:12:52.8]} 25... Bxf2 {[%clk
0:14:59.5]} 26. Kc3 {[%clk 0:12:47.7]} 26... h5 {[%clk 0:14:59.8]} 27. b4 {[%clk
0:12:42.9]} 27... h4 {[%clk 0:15:01.1]} 28. a4 {[%clk 0:12:11.7]} 28... h3
{[%clk 0:15:03]} 29. b5 {[%clk 0:12:09]} 29... h2 {[%clk 0:15:04.9]} 30. a5
{[%clk 0:12:11.4]} 30... h1=Q {[%clk 0:15:06.4]} 31. b6 {[%clk 0:12:08.4]} 31...
Qxf3+ {[%clk 0:15:10.1]} 32. Kb4 {[%clk 0:12:05.8]} 32... Qe4+ {[%clk
0:15:11.3]} 33. Kb5 {[%clk 0:12:06.3]} 33... Bd7# {[%clk 0:15:10.1]} 0-1